Cogmind - Beta 11 @@@ ROGUE MODE // 2022.03.20 @ 20:18:40 Player: RNGesus Result: Destroyed by as-35214 with Assembled F-torch Performance ------------- Evolutions (0) 0 Regions Visited (2) 400 Robots Destroyed (17) 85 Value Destroyed (314) 314 Prototype IDs (1) 20 Alien Tech Used (0) 0 Bonus (0) 0 TOTAL SCORE: 819 Bonus ------- None Cogmind --------- Core Integrity 0/250 Matter 300/300 Energy 100/100 System Corruption 9% Temperature Cool (20) Movement Rolling (200) Ox8 Location -10/Mines Parts ------- > --- POWER (1) -------- (None) > --- PROPULSION (2) --- Wheel > --- UTILITY (2) ------ Improved Heat Sink Huge Storage Unit > --- WEAPON (2) ------- Advanced Beam Cannon Advanced Beam Cannon > --- INVENTORY (25) --- Small Storage Unit Medium Storage Unit Seismic Detector Light Armor Plating Medium Armor Plating Medium Armor Plating Medium Armor Plating Advanced Beam Cannon Makeshift Axe Peak State ------------ > --- POWER ------------ Light Nuclear Core > --- PROPULSION ------- Wheel Wheel > --- UTILITY ---------- Improved Heat Sink Huge Storage Unit > --- WEAPON ----------- Advanced Beam Cannon Advanced Beam Cannon > --- INVENTORY -------- Small Storage Unit Medium Storage Unit Seismic Detector Light Armor Plating Medium Armor Plating Medium Armor Plating Medium Armor Plating Advanced Beam Cannon Makeshift Axe [Rating: 16] Favorites ----------- Power Light Ion Engine Engine Light Ion Engine Power Core Light Nuclear Core Propulsion Wheel Wheel Wheel Utility Improved Heat Sink Device Improved Heat Sink Storage Huge Storage Unit Weapon Assault Rifle Energy Gun EM Pulse Gun Energy Cannon Advanced Beam Cannon Ballistic Gun Assault Rifle Build | -11 -10 -10 ------- Run | Scr Mat Min Slots Evolved . | . . . Power . | . . . Propulsion . | . . . Utility . | . . . Weapon . | . . . Parts Attached 15 | 7 3 5 Power 2 | 1 . 1 Engine 1 | 1 . . Core 1 | . . 1 Reactor . | . . . Propulsion 4 | 2 . 2 Treads . | . . . Leg . | . . . Wheel 4 | 2 . 2 Hover . | . . . Flight . | . . . Utility 5 | 2 2 1 Device 3 | 1 1 1 Storage 2 | 1 1 . Processor . | . . . Hackware . | . . . Protection . | . . . Artifact . | . . . Weapon 4 | 2 1 1 Energy Gun 1 | 1 . . Energy Cannon 2 | . 1 1 Ballistic Gun 1 | 1 . . Ballistic Cannon . | . . . Launcher . | . . . Special Weapon . | . . . Impact Weapon . | . . . Slashing Weapon . | . . . Piercing Weapon . | . . . Special Melee Weapon . | . . . Unidentified Prototypes 1 | . 1 . Parts Lost 7 | . . 7 Power 2 | . . 2 Propulsion 3 | . . 3 Utility 1 | . . 1 Weapon 1 | . . 1 Highest Loss Streak 7 | . . 7 To Critical Strikes . | . . . Average Slot Usage (%) 99 | . 100 97 Engine 13 | . 14 12 Wheel 27 | . 28 26 Device 14 | . 14 14 Storage 14 | . 14 14 Energy Cannon 13 | . 12 15 Ballistic Gun 13 | . 14 12 Naked Turns . | . . . Heaviest Build 94 | 13 90 94 Greatest Support 20 | 20 20 20 Greatest Overweight (x) 9 | . 4 9 Average Overweight (x) 2 | . 1 4 Largest Inventory Capacity 25 | 8 25 25 Average Capacity 18 | 7 16 25 Most Carried 15 | 3 14 15 Average Carried 10 | . 9 13 Final Capacity 25 | 8 25 25 Final Carried 14 | 2 14 9 Class Distribution -------------------- 100% | Mutant Dominant Class ---------------- Mutant | -10/Materials Mutant | -10/Mines Resources | -11 -10 -10 ----------- Run | Scr Mat Min Matter Collected 461 | 221 157 83 Remotely . | . . . Salvage Created 520 | 122 261 137 Parts 32 | 5 20 7 Haulers Intercepted . | . . . Recyclers Shooed . | . . . Parts Field Recycled . | . . . Retrieved Matter . | . . . Parts Self-Destructed . | . . . Prevented . | . . . Kills | -11 -10 -10 ------- Run | Scr Mat Min Combat Hostiles Destroyed 10 | . 7 3 Guns 6 | . 4 2 Cannons 4 | . 3 1 Classes Destroyed 8 | 2 4 2 Worker 3 | . 2 1 Builder 1 | . . 1 Tunneler 2 | 2 . . Recycler 1 | 1 . . Operator 1 | . 1 . Swarmer 3 | . 3 . Grunt 6 | . 4 2 Assembled 1 | . . 1 Best Kill Streak 3 | 3 2 2 Combat Bots Only 2 | . 2 2 Max Kills in Single Turn 1 | 1 1 1 Gunslinging . | . . . Exploded . | . . . Melee . | . . . Uniques/NPCs Destroyed . | . . . Combat | -11 -10 -10 -------- Run | Scr Mat Min Damage Taken 921 | . 341 580 Core 250 | . 74 176 Absorbed by Shields . | . . . Core Remaining (%) 100 | 100 . . Volleys Fired 62 | 10 38 14 Largest 2 | 2 1 2 Hottest 136 | 60 68 136 Shots Fired 73 | 20 38 15 Gun 53 | 20 20 13 Cannon 20 | . 18 2 Launcher . | . . . Special . | . . . Kinetic 43 | 10 20 13 Thermal 20 | . 18 2 Explosive . | . . . Electromagnetic 10 | 10 . . Robot Hit Streak 9 | 3 7 9 Robot Miss Streak 4 | 3 4 1 Penetration Max . | . . . Secondary Targets . | . . . Shots Hit Robots 48 | 10 25 13 Core Hits 23 | 4 12 7 Critical Kills . | . . . Critical Parts Destroyed . | . . . Critical Strikes . | . . . Melee Attacks . | . . . Impact . | . . . Slashing . | . . . Piercing . | . . . Sneak Attacks . | . . . Combat Hostiles . | . . . Follow-up Attacks . | . . . Damage Inflicted 757 | 143 449 165 Guns 428 | 143 162 123 Cannons 329 | . 287 42 Explosions . | . . . Melee . | . . . Ramming . | . . . Kinetic 363 | 78 162 123 Thermal 329 | . 287 42 Explosive . | . . . Electromagnetic 65 | 65 . . Impact . | . . . Slashing . | . . . Piercing . | . . . Highest Corruption 9 | . . 9 Average Corruption 6 | . . 6 Corruption Purged . | . . . Corruption Blocked . | . . . Effects 1 | . . 1 Energy Discharges 1 | . . 1 Overload Shots . | . . . Overflow Damage . | . . . Projectiles . | . . . Explosions . | . . . Melee . | . . . Knockbacks . | . . . Impact . | . . . Kinetic . | . . . Secondary . | . . . Self-Inflicted Damage . | . . . Shots . | . . . Rammed . | . . . Targets Rammed . | . . . Kicked . | . . . Crushed . | . . . Highest Temperature 361 | . 361 18 Average Temperature 216 | . 228 11 Received Heat Transfer 239 | . 135 104 Effects 1 | . 1 . Interference 1 | . 1 . Siege Activations . | . . . Robots Corrupted . | . . . Combat Hostiles . | . . . Parts Fried . | . . . Impact Corruptions . | . . . Robots Melted . | . . . Combat Hostiles . | . . . Parts Melted 1 | . 1 . Heat Transferred 592 | . 518 74 Parts Sabotaged . | . . . Parts Stolen . | . . . Parts Stripped . | . . . Power Chain Reactions . | . . . Missiles Intercepted . | . . . Alert | -11 -10 -10 ------- Run | Scr Mat Min Peak Influence 314 | 15 314 131 Initial 44 | . 9 44 Average 123 | 3 162 87 Maximum Alert Level 1 | . 1 . Low Security (%) 83 | 100 70 100 Level 1 16 | . 29 . Level 2 . | . . . Level 3 . | . . . Level 4 . | . . . Level 5 . | . . . High Security . | . . . Max Security . | . . . Squads Dispatched 1 | . 1 . Investigation 1 | . 1 . Extermination . | . . . Reinforcement . | . . . Assault . | . . . Garrison . | . . . Intercept . | . . . Searches Triggered . | . . . Construction Impeded . | . . . Haulers Reinforced . | . . . Active Scanning Responses . | . . . Cargo Convoy Interrupts . | . . . Stealth | -11 -10 -10 --------- Run | Scr Mat Min Distress Signals 1 | . 1 . Communications Jammed . | . . . Distress Signals . | . . . Times Spotted 37 | . 14 23 Peak Tracking Total 11 | . 5 11 Tactical Retreats . | . . . Traps | -11 -10 -10 ------- Run | Scr Mat Min Traps Triggered . | . . . Indirectly . | . . . Trap Hack Attempts . | . . . Triggered . | . . . Disarmed . | . . . Reprogrammed . | . . . Reused . | . . . Traps Extracted . | . . . Installed . | . . . Triggered . | . . . Machines | -11 -10 -10 ---------- Run | Scr Mat Min Machines Disabled 1 | . . 1 Max in Single Turn 1 | . . 1 Machines Sabotaged . | . . . Garrisons Compromised . | . . . Overloaded Fab Kills . | . . . Hacking | -11 -10 -10 --------- Run | Scr Mat Min Machines Accessed 5 | . 4 1 Terminals 4 | . 3 1 Fabricators . | . . . Repair Stations . | . . . Recycling Units 1 | . 1 . Scanalyzers . | . . . Garrison Access . | . . . Total Hacks 13 | . 11 2 Successful 9 | . 7 2 Failed 4 | . 4 . Catastrophic . | . . . Database Lockouts . | . . . Manual 7 | . 7 . Terminals 12 | . 10 2 Fabricators . | . . . Repair Stations . | . . . Recycling Units 1 | . 1 . Scanalyzers . | . . . Garrison Access . | . . . Terminal Hacks 5 | . 3 2 Alert Level 1 | . 1 . Patrol Status 1 | . . 1 Hauler Manifests 1 | . 1 . Registered Components 1 | . 1 . Zone Layout 1 | . . 1 Fabricator Hacks . | . . . Repair Station Hacks . | . . . Recycling Unit Hacks . | . . . Scanalyzer . | . . . Garrison Access Hacks . | . . . Unauthorized Hacks 4 | . 4 . Terminals 3 | . 3 . Botnet 2 | . 2 . Operators 1 | . 1 . Fabricators . | . . . Repair Stations . | . . . Recycling Units 1 | . 1 . Tunnel 1 | . 1 . Scanalyzers . | . . . Garrison Access . | . . . Data Cores Recovered 1 | . 1 . Used . | . . . Hacking Detections 2 | . 2 . Full Trace Events . | . . . Feedback Events . | . . . Feedback Blocked . | . . . Robot Schematics Acquired . | . . . Robots Built . | . . . Authchips . | . . . Time . | . . . Total Robot Build Rating . | . . . Part Schematics Acquired . | . . . Parts Built . | . . . Authchips . | . . . Time . | . . . Total Part Build Rating . | . . . Parts Repaired . | . . . Time . | . . . Parts Recycled . | . . . Recycled Matter . | . . . Retrieved Matter . | . . . Retrieved Components . | . . . Parts Scanalyzed . | . . . Part Schematics Acquired . | . . . Parts Damaged . | . . . Bothacking | -11 -10 -10 ------------ Run | Scr Mat Min Used RIF Installer . | . . . Robots Hacked . | . . . Non-combat . | . . . Combat . | . . . Robot Hacks Applied . | . . . Relay Couplers Released . | . . . Fabnet Peak Effective % . | . . . Robots Rewired . | . . . Allies Hacked . | . . . Hacks Repelled . | . . . Allies | -11 -10 -10 -------- Run | Scr Mat Min Total Allies . | . . . Largest Group . | . . . Highest-Rated Group . | . . . Highest-Rated Ally . | . . . Total Orders . | . . . Ally Attacks . | . . . Total Damage . | . . . Kills . | . . . Allies Corrupted . | . . . Allies Melted . | . . . Intel | -11 -10 -10 ------- Run | Scr Mat Min Robot Analysis Total . | . . . Derelict Logs Recovered . | . . . Drone Launches . | . . . Drone Recoveries . | . . . Exploration | -11 -10 -10 ------------- Run | Scr Mat Min Turns Passed 954 | 78 542 334 Spaces Moved 661 | 45 413 203 Core 1 | 1 . . Treads . | . . . Legs . | . . . Wheels 660 | 44 413 203 Hover . | . . . Flight . | . . . Fastest Speed 50 | 50 80 140 Average Speed 116 | 79 106 143 Slowest Speed 215 | 80 140 215 Overloaded Moves . | . . . Propulsion Burnouts . | . . . Robots Hopped . | . . . Cave-ins Triggered . | . . . Exploration Rate (%) 35 | 3 62 42 Regions Visited 2 Branch Regions 1 Pre-discovered Areas 1 | . 1 . Known Exits Taken . | . . . Unknown Exits Taken 2 | 1 1 . Scrap Searched 1 | . . 1 Spaces Dug . | . . . Terrain Destroyed . | . . . Melee . | . . . Projectile . | . . . AOE . | . . . Terrain Rammed . | . . . Walls Destroyed . | . . . Machines Disabled . | . . . Actions | -11 -10 -10 --------- Run | Scr Mat Min Total 775 | 64 480 231 Wait 11 | . 6 5 Move 659 | 44 412 203 Hop . | . . . Pick Up 19 | 3 14 2 Fast Attach 8 | 6 2 . Attach 6 | 1 . 5 Detach 2 | . 2 . Swap 1 | . 1 . Drop 7 | . 5 2 Fire 62 | 10 38 14 Melee . | . . . Ram . | . . . Kick . | . . . Crush . | . . . Escape Stasis . | . . . Rewire . | . . . Trap . | . . . Miscellaneous . | . . . Route ------- -11/Scrapyard -10/Materials (discovered 3 exits: [*Mat x2] / *Min) -10/Mines (discovered 2 exits: [*Mat x2]) History --------- Turn | Location | Event 2 | -11/Scrapyard | Met Revision 17 22 | -11/Scrapyard | Discovered new exit (range 14) 79 | -11/Scrapyard | Entered Materials 216 | -10/Materials | Discovered new exit (range 6) 273 | -10/Materials | Discovered new exit (range 6) 301 | -10/Materials | Build established: Mutant 504 | -10/Materials | Discovered new exit (range 13) 621 | -10/Materials | Entered Mines 631 | -10/Mines | A weapon hastily lodged in a ceiling crevice suddenly fell to the ground 751 | -10/Mines | Discovered new exit (range 9) 773 | -10/Mines | Discovered new exit (range 10) 905 | -10/Mines | Assembled infested the area 926 | -10/Mines | Core integrity fell below 50% 938 | -10/Mines | Core integrity fell below 20% 955 | -10/Mines | Destroyed by as-35214 with Assembled F-torch Last Messages --------------- 00925_ as-41114 destroyed. 00926_ as-68177 destroyed. 00927_ as-95472 destroyed. 00927_ as-03747 destroyed. 00928_ as-56107 destroyed. 00928_ Imp. Heat Sink destroyed. 00929_ D-53 Grenadier destroyed. 00929_ as-41745 destroyed. 00929_ K-01 Serf destroyed. 00931_ K-01 Serf collects debris. 00932_ Wheel destroyed. 00934_ K-01 Serf collects debris. 00934_ D-53 Grenadier destroyed. 00937_ The unstable cave ceiling collapses. 00938_ as-80923 sneak attacks. 00938_ K-01 Serf destroyed. 00939_ The unstable cave ceiling collapses. 00944_ Acquired 35 matter. 00945_ Lgt. Nuclear Core destroyed. 00945_ System corrupted by crushing effect (+4). Map ----- +----------------------------------------------------+ | ?????????????????????????????????????????? | | ?????????????????????????????????????????? | | ?????????????????????????????????????????? | | ??##################?????????????######### | | ??# ?????????????# %= | | ??# ?????????????# ###### | | ??# < #????????????# #????? | | ??# #????????????# #????? | | ??# """ """ """ """ #????????????# #????? | | ??# """ """ """ """ #????????????# #????? | | ??# """ "" """ """ #????????????# #????? | | ??# % #????????????# #????? | | ??# !"" """ """ """ #????????????# #????? | | ??# """ """ """ """ ##########???# #????? | | ??# "" """ """ """ #???# #????? | | ?## %[ ######## #####! #????? | | ?#T """ """ """ """ #??????# !%#????? | | ?## """ """ """ """ #??????####### #????? | | ??# """ """ """ """ #????????????# #????? | | ??# #????????????# #????? | | ??###################????????????# #????? | | ???????????######???????????????## #????? | | ?????####### ####???????????## #????? | | ????## #???????????# #????? | | ????# < * #????####??## ###### | | ????# ##@##???## #### # | | ????## #####!#????# ## | | ?????# """ ##???#a###### #### | | ?????# """ #????# a ##??? | | ????## """ #????# #???? | | ????# #????####%###### #????? | | ????# ##???????# #????## #????? | | ????## #?????????# #?????## ##????? | | ?????####?????????## ######?#### ##?????? | | ?????????????????##*% #????# #??????? | | ?????????????????#!%! #???## ##?????? | | ??????????## ????# =* #???# #?????? | | ??????# ## ### = #?# #?????? | | ?????# =!% # ##?????? | | ?????# ! ## ##??????? | | ?????# ### ##???????? | | ????# #?## #?????????? | | ????# ##??# ??????????? | | ????## ####??? ??????????? | | ?????##### ?????? #??????????? | | ?????????## #?????# ???????????? | | ??????????## # #?????# ???????????? | | ???????????# # ??????# ???????????? | | ??????????# # # ?????? ????????????? | | ????????? ?? ??????#????????????? | +----------------------------------------------------+ Best States ------------- Heat Dissipation 39 Energy Generation 14 Energy Capacity 160 Matter Stores 300 Matter Capacity 300 Sight Range 16 Terrain Scan Density 10 Evasion (%) 44 Item Schematics ----------------- None Robot Schematics ------------------ None Fabricated ------------ Nothing Alien Tech Used ----------------- None Achievements -------------- None Challenges ------------ None Game ------ Seed WeightPoweredBuckler Manual? 0 Play Time 00:11:15 Cumulative 279.2 hours Start 2022.03.20 @ 20:06:23 End 2022.03.20 @ 20:18:40 Sessions 1 Manual Loads 0 Difficulty Rogue Special Mode None Game No. 431 Rogue 431 Adventurer 0 Explorer 0 Win Type - Total 5 Types 3/0/1/1/0/0/0/0/0 Lore% 78 Gallery% 78 Achievement% 62 Wizard Run 0 Options --------- ASCII 0 Keyboard 1 Movement Numpad Keybinds 0 Fullscreen 2 Font 24/Smallcaps Map View 76x50 Tactical HUD 1 Map Filters NONE Filters NONE Steam 1 RUN: ee943b21-c102-44da-b83e-7fa5da3833bd